[Event "44th Chess Olympiad Open 2022"]
[Site "Chennai"]
[Date "2022.08.02"]
[Round "5.79"]
[White "Espirito Santo, Waldyr"]
[Black "Prasad, Rudr"]
[Result "1/2-1/2"]
[WhiteElo "1922"]
[BlackElo "1566"]
[Annotator "TA"]
[PlyCount "92"]
[EventDate "2022.??.??"]
[TimeControl "60"]

{[%evp 10,92,26,12,20,29,26,16,17,12,17,30,24,16,29,0,10,0,30,17,46,39,93,23,
139,118,137,130,132,105,92,101,138,108,114,7,19,-18,-23,-111,-31,-94,-23,-53,0,
0,12,-16,-16,-20,-20,-28,0,0,0,-21,36,40,43,-125,-122,-121,0,-187,-189,-190,-3,
-3,-5,-39,-31,-87,-115,-111,0,0,0,0,0,-55,0,0,0,0,0]} 1. e4 {[%emt 0:01:04]} c6
{[%emt 0:00:08]} 2. d4 {[%emt 0:01:09]} d5 {[%emt 0:00:26]} 3. exd5 {[%emt 0:
00:00]} cxd5 {[%emt 0:00:04]} 4. Bd3 {[%emt 0:00:16]} Nc6 {[%emt 0:00:16]} 5.
c3 {[%emt 0:00:24]} Qc7 {[%emt 0:01:29]} 6. Ne2 {[%emt 0:00:43]} e5 {[%emt 0:
00:00] B13: Caro-Kann: Exchange Variation and Panov-Botvinnik Attack.} 7. dxe5
{[%emt 0:01:44]} Nxe5 {[%emt 0:00:35]} 8. Bb5+ {[%emt 0:02:03]} Bd7 {[%emt 0:
00:00]} 9. Bxd7+ {[%emt 0:01:11]} Qxd7 {[%emt 0:00:45]} 10. O-O {[%emt 0:01:11]
} Be7 {[%emt 0:03:28]} 11. Bf4 $36 {[%emt 0:01:08] White is more active.} Ng6 {
[%emt 0:00:45]} 12. Bg3 {[%emt 0:00:28]} Nf6 {[%emt 0:00:45]} 13. Nd2 {[%emt 0:
04:01] [#]} Nh5 $146 {[%emt 0:01:57]} ({Predecessor:} 13... O-O 14. Nd4 Ne4 15.
Re1 Nxg3 16. hxg3 Bf6 17. N2f3 Rfe8 18. Qd3 Rad8 19. Rxe8+ Qxe8 {1-0 (40)
Dudek,R (2293)-Delemarre,I (2254) Germany 2000}) 14. Nf3 {[%emt 0:00:00]} Nxg3
{[%emt 0:01:31]} 15. hxg3 {[%emt 0:00:23]} h5 {[%emt 0:01:24]} (15... Bf6 $14)
16. Qd4 {[%emt 0:03:26]} (16. Nf4 $16) 16... Kf8 {[%emt 0:04:54]} (16... Bf6
$11 17. Qc5 b6 18. Qe3+ Qe7) 17. Rad1 $16 {[%emt 0:06:10]} Qb5 {[%emt 0:04:16]}
18. Rd2 {[%emt 0:03:08]} Rd8 {[%emt 0:01:37]} 19. Rfd1 {[%emt 0:05:55]} Bc5 {
[%emt 0:02:24]} 20. Qd3 {[%emt 0:00:32]} Qb6 {[%emt 0:00:00]} 21. Ned4 {
[%emt 0:00:54]} h4 {[%emt 0:14:04]} 22. Qf5 {[%emt 0:08:18]} (22. g4 $1 $16)
22... hxg3 $11 {[%emt 0:03:01]} 23. fxg3 {[%emt 0:01:19]} Ne7 {[%emt 0:06:10]}
24. Qg4 {[%emt 0:08:26]} (24. Qg5 $11) 24... Qh6 {[%emt 0:00:00]} (24... Ng8 $1
$17 {[%cal Rg8f6]} 25. b4 Bd6) 25. Kf2 {[%emt 0:07:25] [#]} (25. Qf4 $15) 25...
Nc8 {[%emt 0:05:37]} ({Black should try} 25... Ng8 $1 $17 {[%cal Rg8f6] ...Nf6
is the strong threat.} 26. Re2 Nf6) 26. Qg5 {[%emt 0:02:57][%cal Rg5d8]} Qb6 {
[%emt 0:02:16]} (26... Qxg5 $15 27. Nxg5 Rh5) 27. Re2 {[%emt 0:05:54]} Be7 {
[%emt 0:05:32]} 28. Qf4 {[%emt 0:08:46]} Nd6 {[%emt 0:00:00] next ...Ne4+ is
good for Black.} 29. Ne5 {[%emt 0:10:12] Threatens to win with Ng6+.} Rh6 {
[%emt 0:02:21] Against Ng6+. White must now prevent ...Rf6.} 30. Kg1 {[%emt 0:
04:39]} ({But not} 30. Kf3 $2 Rf6 31. Ng4 Rxf4+ $19) 30... Rf6 {[%emt 0:08:55]}
31. Qg4 {[%emt 0:00:43] And now Nd7+ would win.} Qc7 {[%emt 0:00:00] Inhibits
Nd7+.} 32. Ndf3 {[%emt 0:03:52]} Ne4 {[%emt 0:05:00]} (32... Nf5 $11) 33. Rxe4
$14 {[%emt 0:02:28] Active counter play!} dxe4 {[%emt 0:00:00]} 34. Nd7+ $2 {
[%emt 0:02:33] [#]} (34. Rxd8+ $14 Bxd8 35. Nd7+ Kg8 36. Nxf6+ Bxf6 37. Qxe4)
34... Rxd7 $1 $17 {[%emt 0:01:00]} 35. Rxd7 {[%emt 0:00:05]} Qb6+ {[%emt 0:02:
23]} (35... Bc5+ $17 36. Nd4 Qc6 37. Rd8+ Ke7) 36. Rd4 $2 {[%emt 0:01:42] [#]}
(36. Nd4 $1 $11 {and White stays safe.}) 36... Rd6 $1 $19 {[%emt 0:04:59]} ({
Inferior is} 36... exf3 37. Qc8+ Bd8 38. Qxd8+ Qxd8 39. Rxd8+ Ke7 40. Rb8 $11)
37. Qxe4 {[%emt 0:00:16]} Rxd4 $2 {[%emt 0:00:00]} (37... Qxb2 38. Rc4 $15) (
37... Re6 $19 38. Qh7 Bf6 39. Qh8+ Ke7) 38. cxd4 $11 {[%emt 0:00:20]} Qxb2 $19
{[%emt 0:00:34] Endgame KQB-KQN} 39. Qh7 {[%emt 0:00:17][%cal Rh7h8]} Bf6 {
[%emt 0:00:26]} 40. Qe4 {[%emt 0:00:41]} (40. Qh8+ $15 Ke7 41. Qb8) 40... Qxa2
$17 {[%emt 0:02:06]} 41. Qxb7 {[%emt 0:00:00]} a5 {[%emt 0:31:06]} (41... g6
$17 42. Qc8+ Kg7) 42. Qc8+ {[%emt 0:00:00]} Ke7 {[%emt 0:00:28]} 43. Qc5+ {
[%emt 0:00:10]} Kd7 {[%emt 0:00:37]} 44. d5 {[%emt 0:00:06]} ({Better is} 44.
Kh2 $11) 44... Qb1+ {[%emt 0:00:00]} ({Black should play} 44... Qa1+ $1 $15 45.
Kh2 Qc3) 45. Kh2 $11 {[%emt 0:00:00]} Qh7+ {[%emt 0:00:00]} 46. Kg1 {[%emt 0:
00:00]} Qb1+ {[%emt 0:00:00] Weighted Error Value: White=0.35/Black=0.36}
1/2-1/2

[Event "44th Chess Olympiad Open 2022"]
[Site "Chennai"]
[Date "2022.08.02"]
[Round "5.79"]
[White "Terubea, Ronald"]
[Black "Alegre, Fabio Costa"]
[Result "0-1"]
[WhiteElo "1742"]
[BlackElo "1809"]
[Annotator "NA RC"]
[PlyCount "58"]
[EventDate "2022.??.??"]
[TimeControl "60"]

1. e4 {[%emt 0:00:43]} c5 {[%emt 0:00:16]} 2. Bc4 {[%emt 0:00:19]} e6 {[%emt 0:
00:00]} 3. Nc3 {[%emt 0:01:05]} Nc6 {[%emt 0:00:17]} 4. Nf3 {[%emt 0:00:40]} d6
{[%emt 0:02:03]} 5. d4 {[%emt 0:00:51]} cxd4 {[%emt 0:00:38]} 6. Nxd4 {[%emt 0:
00:00]} a6 {[%emt 0:00:18]} 7. a4 {[%emt 0:01:10]} Nf6 {[%emt 0:00:22]} 8. Bg5
{[%emt 0:02:53]} Be7 {[%emt 0:00:12]} 9. O-O {[%emt 0:00:40]} O-O {[%emt 0:00:
00]} 10. Nxc6 {[%emt 0:03:59]} bxc6 {[%emt 0:00:28]} 11. a5 {[%emt 0:00:52]}
Rb8 {[%emt 0:01:53]} 12. b3 {[%emt 0:01:41]} d5 {[%emt 0:03:54]} 13. exd5 {
[%emt 0:03:45]} cxd5 {[%emt 0:00:11]} 14. Bd3 {[%emt 0:02:25]} Qc7 {[%emt 0:00:
00]} 15. Bd2 {[%emt 0:05:51]} e5 {[%emt 0:02:05]} 16. Na4 {[%emt 0:02:38]} Re8
{[%emt 0:05:38]} 17. Re1 {[%emt 0:00:49]} e4 {[%emt 0:07:28]} 18. Bf1 {[%emt 0:
00:00]} Bd6 {[%emt 0:04:37]} 19. g3 {[%emt 0:02:03]} d4 {[%emt 0:00:19]} 20. c4
{[%emt 0:03:17]} h5 {[%emt 0:16:31]} 21. Nb6 {[%emt 0:03:59]} Bg4 {[%emt 0:00:
00]} 22. Be2 {[%emt 0:03:21]} e3 {[%emt 0:16:55]} 23. Bc1 {[%emt 0:09:09]}
exf2+ {[%emt 0:01:14]} 24. Kxf2 {[%emt 0:00:34]} Ne4+ {[%emt 0:00:08]} 25. Kg2
{[%emt 0:03:41]} Nc3 {[%emt 0:04:23]} 26. Bxg4 {[%emt 0:00:43]} Nxd1 {[%emt 0:
00:00]} 27. Rxe8+ {[%emt 0:03:56]} Rxe8 {[%emt 0:00:10]} 28. Bxd1 {[%emt 0:00:
00]} Qb7+ {[%emt 0:00:19]} 29. Bf3 {[%emt 0:00:59]} Re2+ {[%emt 0:00:08]} 0-1

[Event "44th Chess Olympiad Open 2022"]
[Site "Chennai"]
[Date "2022.08.02"]
[Round "5.79"]
[White "Prakash, Prashil"]
[Black "Lima, Osvaldo Dos Santos"]
[Result "0-1"]
[WhiteElo "1514"]
[BlackElo "1863"]
[Annotator "NA RC"]
[PlyCount "74"]
[EventDate "2022.??.??"]
[TimeControl "60"]

1. d4 {[%emt 0:00:32]} Nf6 {[%emt 0:00:31]} 2. c4 {[%emt 0:00:49]} g6 {[%emt 0:
00:00]} 3. Nf3 {[%emt 0:00:39]} Bg7 {[%emt 0:00:20]} 4. g3 {[%emt 0:00:33]} d6
{[%emt 0:00:28]} 5. Bg2 {[%emt 0:01:18]} O-O {[%emt 0:00:10]} 6. O-O {[%emt 0:
00:00]} Nbd7 {[%emt 0:01:29]} 7. Nc3 {[%emt 0:00:46]} h6 {[%emt 0:01:17]} 8.
Bf4 {[%emt 0:04:58]} Re8 {[%emt 0:03:15]} 9. Qd2 {[%emt 0:00:32]} Kh7 {[%emt 0:
00:00]} 10. e4 {[%emt 0:11:02]} Nh5 {[%emt 0:01:15]} 11. Be3 {[%emt 0:03:19]}
e5 {[%emt 0:01:06]} 12. d5 {[%emt 0:03:43]} Nb6 {[%emt 0:03:22]} 13. b3 {
[%emt 0:00:22]} Nf6 {[%emt 0:03:13]} 14. Qc2 {[%emt 0:03:33]} Nbd7 {[%emt 0:00:
00]} 15. Rad1 {[%emt 0:01:46]} Nf8 {[%emt 0:00:21]} 16. Rfe1 {[%emt 0:00:55]}
g5 {[%emt 0:01:01]} 17. c5 {[%emt 0:09:43]} a6 {[%emt 0:00:33]} 18. cxd6 {
[%emt 0:01:56]} cxd6 {[%emt 0:00:04]} 19. Na4 {[%emt 0:00:18]} b5 {[%emt 0:00:
00]} 20. Nb6 {[%emt 0:04:58]} Rb8 {[%emt 0:00:21]} 21. Nxc8 {[%emt 0:00:35]}
Rxc8 {[%emt 0:01:41]} 22. Qb2 {[%emt 0:00:27]} Nxe4 {[%emt 0:02:04]} 23. Bh3 {
[%emt 0:00:51]} Nf6 {[%emt 0:31:15]} 24. Bxc8 {[%emt 0:03:14]} Qxc8 {[%emt 0:
00:00]} 25. Kg2 {[%emt 0:01:42]} Ng6 {[%emt 0:01:36]} 26. Rc1 {[%emt 0:01:42]}
Qg4 {[%emt 0:00:22]} 27. h3 {[%emt 0:02:48]} Qf5 {[%emt 0:03:02]} 28. g4 {
[%emt 0:01:27]} Nxg4 {[%emt 0:02:20]} 29. Nxg5+ {[%emt 0:03:05]} hxg5 {[%emt 0:
00:00]} 30. hxg4 {[%emt 0:01:42]} Qxg4+ {[%emt 0:01:29]} 31. Kf1 {[%emt 0:00:
00]} Qf3 {[%emt 0:05:51]} 32. Red1 {[%emt 0:09:44]} f5 {[%emt 0:06:39]} 33. Qc2
{[%emt 0:02:42]} f4 {[%emt 0:00:45]} 34. Bb6 {[%emt 0:04:28]} e4 {[%emt 0:00:
00]} 35. Ke1 {[%emt 0:03:52]} e3 {[%emt 0:00:33]} 36. Rd3 {[%emt 0:03:10]} Qh1+
{[%emt 0:01:08]} 37. Ke2 {[%emt 0:04:08]} f3# {[%emt 0:00:03]} 0-1

[Event "44th Chess Olympiad Open 2022"]
[Site "Chennai"]
[Date "2022.08.02"]
[Round "5.80"]
[White "Isam, Gaith"]
[Black "Khalema, Sechaba"]
[Result "1-0"]
[WhiteElo "1828"]
[BlackElo "1790"]
[Annotator "NA RC"]
[PlyCount "89"]
[EventDate "2022.??.??"]
[TimeControl "60"]

1. e4 {[%emt 0:00:05]} e5 {[%emt 0:01:21]} 2. Nf3 {[%emt 0:00:27]} Nc6 {
[%emt 0:00:58]} 3. Bc4 {[%emt 0:00:55]} Bc5 {[%emt 0:00:18]} 4. c3 {[%emt 0:00:
00]} Nf6 {[%emt 0:01:30]} 5. d3 {[%emt 0:00:16]} d6 {[%emt 0:00:16]} 6. a4 {
[%emt 0:00:30]} a6 {[%emt 0:00:28]} 7. b4 {[%emt 0:01:13]} Ba7 {[%emt 0:00:16]}
8. a5 {[%emt 0:00:32]} O-O {[%emt 0:00:21]} 9. Bg5 {[%emt 0:00:47]} Be6 {
[%emt 0:00:31]} 10. Nbd2 {[%emt 0:00:40]} Qe7 {[%emt 0:00:14]} 11. O-O {
[%emt 0:04:44]} Rad8 {[%emt 0:06:33]} 12. Bd5 {[%emt 0:01:21]} Bc8 {[%emt 0:00:
00]} 13. Re1 {[%emt 0:05:16]} Nb8 {[%emt 0:04:41]} 14. Nf1 {[%emt 0:01:39]} c6
{[%emt 0:00:12]} 15. Ba2 {[%emt 0:00:37]} Be6 {[%emt 0:00:53]} 16. Ng3 {
[%emt 0:06:05]} h6 {[%emt 0:00:44]} 17. Be3 {[%emt 0:04:56]} Bxe3 {[%emt 0:00:
00]} 18. Rxe3 {[%emt 0:00:28]} Kh7 {[%emt 0:00:11]} 19. Qc2 {[%emt 0:01:50]}
Nbd7 {[%emt 0:02:34]} 20. d4 {[%emt 0:03:47]} g6 {[%emt 0:00:17]} 21. Rd1 {
[%emt 0:07:58]} Rfe8 {[%emt 0:10:02]} 22. h3 {[%emt 0:00:37]} Bxa2 {[%emt 0:00:
00]} 23. Qxa2 {[%emt 0:00:07]} Kg7 {[%emt 0:00:07]} 24. Nh4 {[%emt 0:00:22]}
Kh7 {[%emt 0:00:31]} 25. Rf3 {[%emt 0:03:28]} d5 {[%emt 0:03:21]} 26. Qb3 {
[%emt 0:20:13]} Rf8 {[%emt 0:05:20]} 27. Re3 {[%emt 0:02:21]} Nxe4 {[%emt 0:00:
00]} 28. Nxe4 {[%emt 0:01:48]} exd4 {[%emt 0:03:27]} 29. Rxd4 {[%emt 0:02:26]}
Qxh4 {[%emt 0:00:42]} 30. Ng3 {[%emt 0:05:47]} Qf6 {[%emt 0:00:14]} 31. Qc2 {
[%emt 0:01:18]} Rfe8 {[%emt 0:00:50]} 32. Rf3 {[%emt 0:00:44]} Re1+ {[%emt 0:
00:00]} 33. Kh2 {[%emt 0:00:05]} Qe6 {[%emt 0:00:19]} 34. Qd2 {[%emt 0:01:56]}
Re8 {[%emt 0:00:22]} 35. Rh4 {[%emt 0:00:56]} g5 {[%emt 0:05:18]} 36. Qxg5 {
[%emt 0:00:21]} Re7 {[%emt 0:01:19]} 37. Nf5 {[%emt 0:01:48]} Qe5+ {[%emt 0:00:
00]} 38. g3 {[%emt 0:00:23]} Re6 {[%emt 0:00:10]} 39. Rxh6+ {[%emt 0:02:12]}
Rxh6 {[%emt 0:00:09]} 40. Qxh6+ {[%emt 0:00:02]} Kg8 {[%emt 0:00:12]} 41. Qg5+
{[%emt 0:32:42]} Kh7 {[%emt 0:31:00]} 42. Rf4 {[%emt 0:00:14]} Re4 {[%emt 0:00:
00]} 43. Qh5+ {[%emt 0:01:30]} Kg8 {[%emt 0:02:39]} 44. Nh6+ {[%emt 0:00:09]}
Kg7 {[%emt 0:00:16]} 45. Rxf7+ {[%emt 0:00:11]} 1-0

[Event "44th Chess Olympiad Open 2022"]
[Site "Chennai"]
[Date "2022.08.02"]
[Round "5.80"]
[White "Klaas Tokelo"]
[Black "Shawabke Ziyad"]
[Result "1/2-1/2"]
[WhiteElo "1812"]
[BlackElo "1786"]
[Annotator "NA"]
[PlyCount "93"]
[EventDate "2022.??.??"]
[TimeControl "60"]

1. d4 {[%emt 0:00:06]} Nf6 {[%emt 0:01:00]} 2. Nf3 {[%emt 0:00:26]} d5 {
[%emt 0:00:16]} 3. e3 {[%emt 0:00:22]} c5 {[%emt 0:02:10]} 4. Be2 {[%emt 0:00:
00]} e6 {[%emt 0:00:36]} 5. O-O {[%emt 0:00:10]} Nc6 {[%emt 0:00:12]} 6. Nbd2 {
[%emt 0:00:26]} Be7 {[%emt 0:00:56]} 7. b3 {[%emt 0:01:09]} cxd4 {[%emt 0:00:
00]} 8. exd4 {[%emt 0:00:16]} O-O {[%emt 0:00:18]} 9. Bb2 {[%emt 0:00:13]} a5 {
[%emt 0:04:27]} 10. a3 {[%emt 0:00:29]} b6 {[%emt 0:01:35]} 11. Bb5 {[%emt 0:
00:00]} Qc7 {[%emt 0:00:56]} 12. Qe2 {[%emt 0:00:25]} Bd7 {[%emt 0:01:56]} 13.
Rac1 {[%emt 0:00:45]} Na7 {[%emt 0:01:40]} 14. Bd3 {[%emt 0:00:30]} a4 {
[%emt 0:04:19]} 15. c4 {[%emt 0:01:54]} Qd8 {[%emt 0:11:04]} 16. b4 {[%emt 0:
00:00]} dxc4 {[%emt 0:08:48]} 17. Nxc4 {[%emt 0:00:46]} Bb5 {[%emt 0:01:41]}
18. Nfe5 {[%emt 0:00:57]} Rc8 {[%emt 0:13:11]} 19. Rcd1 {[%emt 0:08:29]} Bxc4
20. Nxc4 Nc6 {[%emt 0:07:19]} 21. b5 {[%emt 0:08:44]} Na5 {[%emt 0:04:02]} 22.
Nxa5 {[%emt 0:01:55]} bxa5 {[%emt 0:00:16]} 23. Bc2 {[%emt 0:00:16]} Nd5 {
[%emt 0:02:34]} 24. Qd3 {[%emt 0:00:49]} g6 {[%emt 0:00:27]} 25. Bxa4 {[%emt 0:
00:00]} Bd6 {[%emt 0:04:10]} 26. g3 {[%emt 0:04:46]} Nb6 {[%emt 0:04:16]} 27.
Bb3 {[%emt 0:00:38]} a4 {[%emt 0:00:51]} 28. Ba2 {[%emt 0:00:27]} Nd5 {[%emt 0:
00:00]} 29. Rc1 {[%emt 0:07:16]} Qb6 {[%emt 0:02:38]} 30. Rxc8 {[%emt 0:06:27]}
Rxc8 {[%emt 0:00:06]} 31. Rc1 {[%emt 0:05:40]} Rb8 {[%emt 0:06:08]} 32. Rc6 {
[%emt 0:06:39]} Qxb5 {[%emt 0:00:44]} 33. Qxb5 {[%emt 0:00:47]} Rxb5 {[%emt 0:
00:00]} 34. Rxd6 {[%emt 0:01:25]} Rxb2 {[%emt 0:00:11]} 35. Bxd5 {[%emt 0:00:
00]} exd5 {[%emt 0:00:57]} 36. Ra6 {[%emt 0:00:43]} Rd2 {[%emt 0:00:10]} 37.
Rxa4 {[%emt 0:00:08]} Kg7 {[%emt 0:00:27]} 38. Kg2 {[%emt 0:01:28]} Rd3 {
[%emt 0:01:45]} 39. Kf1 {[%emt 0:00:47]} Rd2 {[%emt 0:00:38]} 40. Ke1 {[%emt 0:
00:00]} Ra2 {[%emt 0:00:17]} 41. Ra5 {[%emt 0:34:00]} Kf6 {[%emt 0:31:35]} 42.
Rxd5 {[%emt 0:01:14]} Rxa3 {[%emt 0:00:27]} 43. Re5 {[%emt 0:00:20]} Rd3 {
[%emt 0:00:15]} 44. Re4 {[%emt 0:00:45]} Kf5 {[%emt 0:08:55]} 45. Rf4+ {
[%emt 0:03:38]} Ke6 {[%emt 0:00:17]} 46. Ke2 {[%emt 0:00:11]} Ra3 {[%emt 0:00:
00]} 47. Re4+ {[%emt 0:13:44]} 1/2-1/2

[Event "44th Chess Olympiad Open 2022"]
[Site "Chennai"]
[Date "2022.08.02"]
[Round "5.80"]
[White "Altell, Majed"]
[Black "Tsephe, Lebajoa"]
[Result "0-1"]
[WhiteElo "1807"]
[BlackElo "1712"]
[Annotator "NA RC"]
[PlyCount "78"]
[EventDate "2022.??.??"]
[TimeControl "60"]

1. d4 {[%emt 0:00:35]} Nf6 {[%emt 0:01:37]} 2. c4 {[%emt 0:00:05]} g6 {[%emt 0:
00:00]} 3. Nc3 {[%emt 0:00:05]} Bg7 {[%emt 0:00:11]} 4. e4 {[%emt 0:00:04]} d6
{[%emt 0:00:40]} 5. Nge2 {[%emt 0:00:11]} c6 {[%emt 0:03:23]} 6. f3 {[%emt 0:
00:00]} a6 {[%emt 0:00:25]} 7. Be3 {[%emt 0:03:10]} b5 {[%emt 0:00:19]} 8. cxb5
{[%emt 0:05:21]} axb5 {[%emt 0:00:18]} 9. a3 {[%emt 0:04:33]} Nbd7 {[%emt 0:00:
00]} 10. Ng3 {[%emt 0:03:26]} h5 {[%emt 0:01:23]} 11. Bd3 {[%emt 0:00:49]} Qb6
{[%emt 0:04:34]} 12. b4 {[%emt 0:00:50]} h4 {[%emt 0:01:23]} 13. Nge2 {[%emt 0:
00:00]} Qb8 {[%emt 0:08:08]} 14. O-O {[%emt 0:02:50]} e5 {[%emt 0:07:52]} 15.
d5 {[%emt 0:02:45]} cxd5 {[%emt 0:00:24]} 16. exd5 {[%emt 0:02:59]} Ba6 {
[%emt 0:00:50]} 17. a4 {[%emt 0:07:00]} bxa4 {[%emt 0:02:53]} 18. Qxa4 {
[%emt 0:00:38]} Bb7 {[%emt 0:00:57]} 19. Ba7 {[%emt 0:00:52]} Qc8 {[%emt 0:00:
00]} 20. Rfc1 {[%emt 0:14:08]} Ke7 {[%emt 0:01:23]} 21. Qb3 {[%emt 0:06:27]}
Bh6 {[%emt 0:01:17]} 22. f4 {[%emt 0:00:29]} Qd8 {[%emt 0:01:48]} 23. Be3 {
[%emt 0:05:53]} Ng4 {[%emt 0:00:49]} 24. Rxa8 {[%emt 0:03:28]} Qxa8 {[%emt 0:
00:00]} 25. Bf2 {[%emt 0:01:22]} Nxf2 {[%emt 0:01:05]} 26. Kxf2 {[%emt 0:00:04]
} exf4 {[%emt 0:00:19]} 27. Be4 {[%emt 0:03:54]} f3 {[%emt 0:01:08]} 28. Bxf3 {
[%emt 0:01:08]} Bxc1 {[%emt 0:00:14]} 29. Nxc1 {[%emt 0:00:02]} Qa7+ {[%emt 0:
00:00]} 30. Ke2 {[%emt 0:00:54]} h3 {[%emt 0:00:24]} 31. Qc2 {[%emt 0:04:48]}
hxg2 {[%emt 0:02:15]} 32. Bxg2 {[%emt 0:00:31]} Qg1 {[%emt 0:00:12]} 33. Qe4+ {
[%emt 0:00:30]} Ne5 {[%emt 0:00:12]} 34. Nd3 {[%emt 0:00:30]} f5 {[%emt 0:00:
00]} 35. Qe3 {[%emt 0:01:48]} Qxg2+ {[%emt 0:00:07]} 36. Nf2 {[%emt 0:00:03]}
Rxh2 {[%emt 0:00:41]} 37. Qb6 {[%emt 0:00:13]} Qf3+ {[%emt 0:00:50]} 38. Ke1 {
[%emt 0:00:14]} Nd3+ {[%emt 0:00:14]} 39. Nxd3 {[%emt 0:00:06]} Qh1+ {[%emt 0:
00:00]} 0-1

[Event "44th Chess Olympiad Open 2022"]
[Site "Chennai"]
[Date "2022.08.02"]
[Round "5.80"]
[White "Bokang, Motsamai"]
[Black "Miswadah, Baha"]
[Result "0-1"]
[WhiteElo "1433"]
[BlackElo "1985"]
[Annotator "NA RC"]
[PlyCount "42"]
[EventDate "2022.??.??"]
[TimeControl "60"]

1. d4 {[%emt 0:01:11]} d5 {[%emt 0:01:22]} 2. Nf3 {[%emt 0:00:08]} Nf6 {
[%emt 0:00:06]} 3. e3 {[%emt 0:00:05]} e6 {[%emt 0:00:25]} 4. Bd3 {[%emt 0:00:
00]} Be7 {[%emt 0:00:17]} 5. b3 {[%emt 0:00:11]} Nbd7 {[%emt 0:00:59]} 6. Bb2 {
[%emt 0:01:44]} O-O {[%emt 0:00:26]} 7. O-O {[%emt 0:00:11]} b6 {[%emt 0:00:06]
} 8. Nbd2 {[%emt 0:00:58]} Bb7 {[%emt 0:00:22]} 9. Rc1 {[%emt 0:00:12]} Ne4 {
[%emt 0:00:55]} 10. c4 {[%emt 0:00:32]} Rc8 {[%emt 0:01:17]} 11. Qe2 {[%emt 0:
00:00]} f5 {[%emt 0:02:56]} 12. cxd5 {[%emt 0:01:22]} exd5 {[%emt 0:00:36]} 13.
Ba6 {[%emt 0:01:08]} Bxa6 {[%emt 0:00:36]} 14. Qxa6 {[%emt 0:00:12]} Bd6 {
[%emt 0:01:20]} 15. Qxa7 {[%emt 0:16:11]} Qe7 {[%emt 0:04:27]} 16. Qb7 {
[%emt 0:03:06]} Ndf6 {[%emt 0:01:15]} 17. Rfd1 {[%emt 0:04:25]} Nxf2 {[%emt 0:
00:00]} 18. Kxf2 {[%emt 0:05:55]} Ng4+ {[%emt 0:04:38]} 19. Kf1 {[%emt 0:00:31]
} Qxe3 {[%emt 0:00:53]} 20. Qxd5+ {[%emt 0:00:15]} Kh8 {[%emt 0:00:23]} 21. Ne4
{[%emt 0:02:41]} fxe4 {[%emt 0:00:27]} 0-1

[Event "44th Chess Olympiad Open 2022"]
[Site "Chennai"]
[Date "2022.08.02"]
[Round "5.81"]
[White "Vasco Mateus Felizardo Viagei"]
[Black "Young, Christopher"]
[Result "1-0"]
[WhiteElo "1852"]
[BlackElo "1990"]
[Annotator "NA RC"]
[PlyCount "81"]
[EventDate "2022.??.??"]
[TimeControl "60"]

1. e4 {[%emt 0:00:04]} c5 {[%emt 0:00:04]} 2. Nf3 {[%emt 0:00:05]} e6 {[%emt 0:
00:00]} 3. c3 {[%emt 0:00:13]} Nf6 {[%emt 0:00:16]} 4. e5 {[%emt 0:00:51]} Nd5
{[%emt 0:00:05]} 5. Bc4 {[%emt 0:00:56]} Nc6 {[%emt 0:01:52]} 6. O-O {[%emt 0:
00:00]} Be7 {[%emt 0:01:58]} 7. d4 {[%emt 0:01:47]} d6 {[%emt 0:07:05]} 8. Qe2
{[%emt 0:01:06]} O-O {[%emt 0:01:35]} 9. Rd1 {[%emt 0:02:25]} Qc7 {[%emt 0:00:
00]} 10. Bd3 {[%emt 0:05:35]} f6 {[%emt 0:21:38]} 11. exf6 {[%emt 0:03:03]}
Nxf6 {[%emt 0:01:08]} 12. dxc5 {[%emt 0:10:10]} d5 {[%emt 0:06:44]} 13. Nd4 {
[%emt 0:06:05]} e5 {[%emt 0:03:20]} 14. Nxc6 {[%emt 0:00:55]} bxc6 {[%emt 0:00:
00]} 15. h3 {[%emt 0:01:20]} Bxc5 {[%emt 0:00:46]} 16. Be3 {[%emt 0:00:36]} Bd6
{[%emt 0:06:52]} 17. Nd2 {[%emt 0:02:48]} Bd7 {[%emt 0:01:28]} 18. c4 {[%emt 0:
00:00]} e4 {[%emt 0:06:19]} 19. Bc2 {[%emt 0:00:10]} Be5 {[%emt 0:01:43]} 20.
Bc5 {[%emt 0:00:12]} Rfe8 {[%emt 0:01:49]} 21. Rab1 {[%emt 0:00:37]} Bf5 {
[%emt 0:02:02]} 22. Nf1 {[%emt 0:02:18]} Rad8 {[%emt 0:01:53]} 23. cxd5 {
[%emt 0:03:30]} cxd5 {[%emt 0:00:26]} 24. b4 {[%emt 0:03:08]} d4 {[%emt 0:00:
00]} 25. Ba4 {[%emt 0:01:29]} Bd7 {[%emt 0:13:38]} 26. Bb3+ {[%emt 0:03:01]}
Kh8 {[%emt 0:01:16]} 27. Bxd4 {[%emt 0:00:31]} Bxd4 {[%emt 0:03:36]} 28. Rxd4 {
[%emt 0:00:10]} Bb5 {[%emt 0:00:27]} 29. Qd2 {[%emt 0:00:20]} Bd3 {[%emt 0:00:
00]} 30. Rc1 {[%emt 0:00:24]} Qb6 {[%emt 0:01:03]} 31. Rxd8 {[%emt 0:00:11]}
Rxd8 {[%emt 0:00:07]} 32. Ne3 {[%emt 0:01:19]} h6 {[%emt 0:01:53]} 33. Rc5 {
[%emt 0:04:09]} Rb8 {[%emt 0:01:23]} 34. a3 {[%emt 0:00:13]} Qa6 {[%emt 0:00:
00]} 35. Ra5 {[%emt 0:00:40]} Qb6 {[%emt 0:00:13]} 36. Qc3 {[%emt 0:01:00]} a6
{[%emt 0:00:41]} 37. Rc5 {[%emt 0:00:29]} Qd6 {[%emt 0:00:45]} 38. Nf5 {
[%emt 0:00:39]} Qf4 {[%emt 0:00:23]} 39. Ne7 {[%emt 0:01:19]} Kh7 {[%emt 0:00:
00]} 40. Bf7 {[%emt 0:00:31]} Rf8 {[%emt 0:00:31]} 41. Ng6 {[%emt 0:30:20]} 1-0

[Event "44th Chess Olympiad Open 2022"]
[Site "Chennai"]
[Date "2022.08.02"]
[Round "5.81"]
[White "Rafael Chirinza"]
[Black "Swaminathan, Laia"]
[Result "1-0"]
[WhiteElo "1725"]
[BlackElo "1460"]
[Annotator "NA RC"]
[PlyCount "43"]
[EventDate "2022.??.??"]
[TimeControl "60"]

1. d4 {[%emt 0:00:11]} Nf6 {[%emt 0:00:09]} 2. Nf3 {[%emt 0:00:03]} g6 {
[%emt 0:00:13]} 3. Nc3 {[%emt 0:00:43]} Bg7 {[%emt 0:00:15]} 4. e4 {[%emt 0:00:
00]} d6 {[%emt 0:01:35]} 5. Bc4 {[%emt 0:01:24]} e6 {[%emt 0:04:25]} 6. Bg5 {
[%emt 0:01:06]} Qd7 {[%emt 0:04:58]} 7. e5 {[%emt 0:03:05]} Ng8 {[%emt 0:02:13]
} 8. d5 {[%emt 0:02:58]} dxe5 {[%emt 0:04:24]} 9. dxe6 {[%emt 0:00:47]} fxe6 {
[%emt 0:01:48]} 10. O-O {[%emt 0:01:00]} Nc6 {[%emt 0:03:21]} 11. Ne4 {[%emt 0:
00:00]} Na5 {[%emt 0:05:17]} 12. Qe2 {[%emt 0:02:41]} Nxc4 {[%emt 0:05:35]} 13.
Qxc4 {[%emt 0:00:03]} Qf7 {[%emt 0:01:47]} 14. Rad1 {[%emt 0:01:01]} Bf6 {
[%emt 0:03:42]} 15. Nxe5 {[%emt 0:01:22]} Qe7 {[%emt 0:00:56]} 16. Nxf6+ {
[%emt 0:01:05]} Nxf6 {[%emt 0:00:18]} 17. Ng4 {[%emt 0:00:42]} Rf8 {[%emt 0:00:
00]} 18. Rfe1 {[%emt 0:01:13]} c6 {[%emt 0:02:50]} 19. Qd4 {[%emt 0:01:02]} Qc7
{[%emt 0:08:25]} 20. Nxf6+ {[%emt 0:01:28]} Kf7 {[%emt 0:00:30]} 21. Nd7 {
[%emt 0:02:38]} Rg8 {[%emt 0:03:35]} 22. Qf6+ {[%emt 0:05:30]} 1-0